[Event "Titled Tuesday Blitz August 08 Late 2023"]
[White "Prohaszka, Peter"]
[Black "Muhammad Shahzeb"]
[WhiteFideId "726265"]
[BlackFideId "7804806"]
[WhiteElo "2719"]
[BlackElo "2402"]
[Result "1-0"]
[Round "1"]
[TimeControl "180+1"]
[Date "2023.08.08"]
[WhiteClock "0:00:15"]
[BlackClock "0:00:09"]
[Board "80"]

1. d4 {[%clk 0:02:52]}  Nf6 {[%clk 0:02:59]} 2. Nf3 {[%clk 0:02:52]}  e6 {[%clk 0:02:58]} 3. c3 {[%clk 0:02:53]}  c5 {[%clk 0:02:57]} 4. Bg5 {[%clk 0:02:53]}  Qb6 {[%clk 0:02:52]} 5. Qb3 {[%clk 0:02:44]}  Ne4 {[%clk 0:02:51]} 6. Be3 {[%clk 0:02:35]}  d5 {[%clk 0:02:48]} 7. dxc5 {[%clk 0:02:28]}  Bxc5 {[%clk 0:02:44]} 8. Bxc5 {[%clk 0:02:29]}  Qxc5 {[%clk 0:02:40]} 9. e3 {[%clk 0:02:29]}  O-O {[%clk 0:02:37]} 10. Bd3 {[%clk 0:02:29]}  Nc6 {[%clk 0:02:36]} 11. O-O {[%clk 0:02:21]}  h6 {[%clk 0:02:33]} 12. Rc1 {[%clk 0:02:18]}  Bd7 {[%clk 0:02:32]} 13. c4 {[%clk 0:02:08]}  Na5 {[%clk 0:02:14]} 14. Qc2 {[%clk 0:02:07]}  Nf6 {[%clk 0:02:07]} 15. Nbd2 {[%clk 0:02:00]}  dxc4 {[%clk 0:02:05]} 16. Nxc4 {[%clk 0:01:57]}  Nxc4 {[%clk 0:02:01]} 17. Qxc4 {[%clk 0:01:55]}  Qxc4 {[%clk 0:02:01]} 18. Bxc4 {[%clk 0:01:55]}  Rfc8 {[%clk 0:01:52]} 19. Ne5 {[%clk 0:01:52]}  Be8 {[%clk 0:01:52]} 20. f3 {[%clk 0:01:52]}  Kf8 {[%clk 0:01:51]} 21. e4 {[%clk 0:01:51]}  Nd7 {[%clk 0:01:51]} 22. Nd3 {[%clk 0:01:51]}  Nc5 {[%clk 0:01:48]} 23. Nf2 {[%clk 0:01:40]}  Rc6 {[%clk 0:01:43]} 24. Bb5 {[%clk 0:01:39]}  Rcc8 {[%clk 0:01:29]} 25. Bxe8 {[%clk 0:01:37]}  Kxe8 {[%clk 0:01:30]} 26. Kf1 {[%clk 0:01:35]}  Kd7 {[%clk 0:01:24]} 27. Ke2 {[%clk 0:01:35]}  Na4 {[%clk 0:01:23]} 28. b3 {[%clk 0:01:34]}  Nc3+ {[%clk 0:01:21]} 29. Kd3 {[%clk 0:01:32]}  Nb5 {[%clk 0:01:20]} 30. Ng4 {[%clk 0:01:31]}  f6 {[%clk 0:01:16]} 31. e5 {[%clk 0:01:23]}  Ke7 {[%clk 0:01:11]} 32. exf6+ {[%clk 0:01:10]}  gxf6 {[%clk 0:01:10]} 33. Rxc8 {[%clk 0:00:53]}  Rxc8 {[%clk 0:01:09]} 34. Nxh6 {[%clk 0:00:54]}  Rh8 {[%clk 0:01:04]} 35. Ng4 {[%clk 0:00:53]}  f5 {[%clk 0:01:03]} 36. Ne5 {[%clk 0:00:43]}  Rxh2 {[%clk 0:01:02]} 37. Rg1 {[%clk 0:00:43]}  Nd6 {[%clk 0:00:49]} 38. Ke3 {[%clk 0:00:40]}  Nf7 {[%clk 0:00:47]} 39. Nd3 {[%clk 0:00:35]}  e5 {[%clk 0:00:46]} 40. Kf2 {[%clk 0:00:36]}  Ke6 {[%clk 0:00:42]} 41. Rc1 {[%clk 0:00:35]}  e4 {[%clk 0:00:30]} 42. Nf4+ {[%clk 0:00:30]}  Ke5 {[%clk 0:00:30]} 43. Kg3 {[%clk 0:00:15]}  Rh7 {[%clk 0:00:29]} 44. Rc5+ {[%clk 0:00:14]}  Kd4 {[%clk 0:00:18]} 45. Rxf5 {[%clk 0:00:14]}  Rg7+ {[%clk 0:00:15]} 46. Kf2 {[%clk 0:00:14]}  e3+ {[%clk 0:00:15]} 47. Ke2 {[%clk 0:00:15]}  Ne5 {[%clk 0:00:09]} 48. Ne6+ {[%clk 0:00:15]} 1-0


[Site "https://www.chess.com"]

[Event "Titled Tuesday Blitz August 08 Late 2023"]
[White "Mazurkiewicz, Michal"]
[Black "Akobian, Varuzhan"]
[WhiteFideId "1124943"]
[BlackFideId "13300580"]
[WhiteElo "2402"]
[BlackElo "2718"]
[Result "0-1"]
[Round "1"]
[TimeControl "180+1"]
[Date "2023.08.08"]
[WhiteClock "0:00:14"]
[BlackClock "0:00:57"]
[Board "81"]

1. e4 {[%clk 0:03:00]}  d6 {[%clk 0:02:52]} 2. d4 {[%clk 0:02:59]}  Nf6 {[%clk 0:02:52]} 3. Nc3 {[%clk 0:02:59]}  c6 {[%clk 0:02:52]} 4. f4 {[%clk 0:02:59]}  Qa5 {[%clk 0:02:51]} 5. Bd2 {[%clk 0:02:56]}  Qb6 {[%clk 0:02:50]} 6. Nf3 {[%clk 0:02:56]}  d5 {[%clk 0:02:50]} 7. e5 {[%clk 0:02:36]}  Ne4 {[%clk 0:02:47]} 8. Nxe4 {[%clk 0:02:36]}  dxe4 {[%clk 0:02:43]} 9. Ng5 {[%clk 0:02:36]}  Qxd4 {[%clk 0:02:28]} 10. c3 {[%clk 0:02:31]}  Qd5 {[%clk 0:02:25]} 11. Qb3 {[%clk 0:02:24]}  Qxb3 {[%clk 0:02:04]} 12. axb3 {[%clk 0:02:25]}  Bf5 {[%clk 0:01:58]} 13. Bc4 {[%clk 0:02:19]}  e6 {[%clk 0:01:57]} 14. h4 {[%clk 0:01:24]}  h6 {[%clk 0:01:53]} 15. Nh3 {[%clk 0:01:24]}  Nd7 {[%clk 0:01:52]} 16. b4 {[%clk 0:01:19]}  f6 {[%clk 0:01:27]} 17. exf6 {[%clk 0:01:14]}  Nxf6 {[%clk 0:01:27]} 18. Be3 {[%clk 0:01:14]}  a6 {[%clk 0:01:26]} 19. Nf2 {[%clk 0:01:14]}  Be7 {[%clk 0:01:23]} 20. O-O-O {[%clk 0:01:08]}  Nd5 {[%clk 0:01:19]} 21. Rhe1 {[%clk 0:01:07]}  Bxh4 {[%clk 0:01:18]} 22. g4 {[%clk 0:00:49]}  Nxe3 {[%clk 0:01:14]} 23. Rxe3 {[%clk 0:00:39]}  Bxf2 {[%clk 0:01:14]} 24. Re2 {[%clk 0:00:38]}  Bxg4 {[%clk 0:01:13]} 25. Rxf2 {[%clk 0:00:37]}  Bxd1 {[%clk 0:01:13]} 26. Kxd1 {[%clk 0:00:38]}  Ke7 {[%clk 0:01:11]} 27. Re2 {[%clk 0:00:38]}  Raf8 {[%clk 0:01:10]} 28. Rxe4 {[%clk 0:00:38]}  Rf6 {[%clk 0:01:10]} 29. f5 {[%clk 0:00:38]}  Rxf5 {[%clk 0:01:08]} 30. Bxe6 {[%clk 0:00:38]}  Rd8+ {[%clk 0:01:06]} 31. Ke2 {[%clk 0:00:37]}  Rf6 {[%clk 0:01:01]} 32. Bc8+ {[%clk 0:00:37]}  Kf8 {[%clk 0:01:00]} 33. Bxb7 {[%clk 0:00:37]}  Re8 {[%clk 0:00:58]} 34. Rxe8+ {[%clk 0:00:35]}  Kxe8 {[%clk 0:00:59]} 35. Bxa6 {[%clk 0:00:36]}  h5 {[%clk 0:00:59]} 36. b5 {[%clk 0:00:31]}  cxb5 {[%clk 0:00:58]} 37. Bxb5+ {[%clk 0:00:32]}  Kd8 {[%clk 0:00:58]} 38. b4 {[%clk 0:00:30]}  h4 {[%clk 0:00:58]} 39. Bc4 {[%clk 0:00:23]}  h3 {[%clk 0:00:58]} 40. Bd5 {[%clk 0:00:23]}  h2 {[%clk 0:00:58]} 41. c4 {[%clk 0:00:21]}  Rf5 {[%clk 0:00:57]} 42. Bh1 {[%clk 0:00:20]}  Rg5 {[%clk 0:00:57]} 43. c5 {[%clk 0:00:17]}  Rg1 {[%clk 0:00:56]} 44. Bf3 {[%clk 0:00:18]}  h1=Q {[%clk 0:00:56]} 45. Bxh1 {[%clk 0:00:18]}  Rxh1 {[%clk 0:00:57]} 46. Kd3 {[%clk 0:00:14]}  Rh4 {[%clk 0:00:57]} 0-1


[Site "https://www.chess.com"]

[Event "Titled Tuesday Blitz August 08 Late 2023"]
[White "KarolKacprzak"]
[Black "GaiozNigalidze"]
[WhiteElo "2704"]
[BlackElo "2389"]
[Result "0-1"]
[Round "1"]
[TimeControl "180+1"]
[Date "2023.08.08"]
[WhiteClock "0:00:03"]
[BlackClock "0:00:29"]
[Board "86"]

1. d4 {[%clk 0:02:59]}  Nf6 {[%clk 0:02:59]} 2. Nf3 {[%clk 0:02:58]}  c5 {[%clk 0:02:58]} 3. d5 {[%clk 0:02:55]}  b5 {[%clk 0:02:57]} 4. Bg5 {[%clk 0:02:44]}  g6 {[%clk 0:02:50]} 5. Bxf6 {[%clk 0:02:38]}  exf6 {[%clk 0:02:50]} 6. e4 {[%clk 0:02:39]}  a6 {[%clk 0:02:32]} 7. a4 {[%clk 0:02:39]}  b4 {[%clk 0:02:21]} 8. Bd3 {[%clk 0:02:39]}  Bg7 {[%clk 0:02:21]} 9. Nbd2 {[%clk 0:02:39]}  d6 {[%clk 0:02:22]} 10. O-O {[%clk 0:02:40]}  Nd7 {[%clk 0:02:22]} 11. a5 {[%clk 0:02:38]}  Ne5 {[%clk 0:02:20]} 12. Nc4 {[%clk 0:02:34]}  Nxc4 {[%clk 0:02:17]} 13. Bxc4 {[%clk 0:02:34]}  Bg4 {[%clk 0:02:17]} 14. h3 {[%clk 0:02:34]}  Bxf3 {[%clk 0:02:17]} 15. Qxf3 {[%clk 0:02:35]}  O-O {[%clk 0:02:17]} 16. Qd3 {[%clk 0:02:35]}  Qc8 {[%clk 0:02:16]} 17. Rae1 {[%clk 0:02:28]}  Qc7 {[%clk 0:02:14]} 18. Ra1 {[%clk 0:02:28]}  Ra7 {[%clk 0:02:15]} 19. Kh2 {[%clk 0:02:23]}  f5 {[%clk 0:02:15]} 20. exf5 {[%clk 0:02:16]}  Bxb2 {[%clk 0:02:15]} 21. Rab1 {[%clk 0:02:03]}  Bc3 {[%clk 0:02:14]} 22. Rb3 {[%clk 0:01:57]}  Qe7 {[%clk 0:01:56]} 23. f4 {[%clk 0:01:48]}  Re8 {[%clk 0:01:47]} 24. Bxa6 {[%clk 0:01:43]}  Qe3 {[%clk 0:01:33]} 25. Bb5 {[%clk 0:01:11]}  Qxd3 {[%clk 0:01:33]} 26. Bxd3 {[%clk 0:01:06]}  Rxa5 {[%clk 0:01:30]} 27. Rbb1 {[%clk 0:01:04]}  Ra2 {[%clk 0:01:25]} 28. Rf2 {[%clk 0:00:59]}  Re3 {[%clk 0:01:20]} 29. Rbf1 {[%clk 0:00:57]}  Kg7 {[%clk 0:01:14]} 30. fxg6 {[%clk 0:00:56]}  hxg6 {[%clk 0:01:14]} 31. f5 {[%clk 0:00:56]}  g5 {[%clk 0:01:14]} 32. f6+ {[%clk 0:00:57]}  Kh6 {[%clk 0:01:14]} 33. Bc4 {[%clk 0:00:51]}  Be5+ {[%clk 0:01:13]} 34. Kh1 {[%clk 0:00:51]}  Rb2 {[%clk 0:01:10]} 35. Bb3 {[%clk 0:00:45]}  Rc3 {[%clk 0:01:05]} 36. Ba4 {[%clk 0:00:44]}  c4 {[%clk 0:00:56]} 37. Be8 {[%clk 0:00:41]}  Rcxc2 {[%clk 0:00:53]} 38. Rxc2 {[%clk 0:00:37]}  Rxc2 {[%clk 0:00:54]} 39. Bxf7 {[%clk 0:00:36]}  b3 {[%clk 0:00:54]} 40. Be6 {[%clk 0:00:27]}  b2 {[%clk 0:00:51]} 41. f7 {[%clk 0:00:26]}  Bg7 {[%clk 0:00:51]} 42. Bf5 {[%clk 0:00:26]}  Rc1 {[%clk 0:00:50]} 43. Kg1 {[%clk 0:00:24]}  g4 {[%clk 0:00:37]} 44. Kf2 {[%clk 0:00:18]}  gxh3 {[%clk 0:00:33]} 45. gxh3 {[%clk 0:00:19]}  c3 {[%clk 0:00:34]} 46. Ke2 {[%clk 0:00:15]}  c2 {[%clk 0:00:32]} 47. Bxc2 {[%clk 0:00:07]}  Rxc2+ {[%clk 0:00:32]} 48. Kd3 {[%clk 0:00:08]}  Rc1 {[%clk 0:00:30]} 49. Rf6+ {[%clk 0:00:07]}  Kh7 {[%clk 0:00:30]} 50. f8=Q {[%clk 0:00:04]}  Bxf8 {[%clk 0:00:29]} 51. Rxf8 {[%clk 0:00:03]}  b1=Q+ {[%clk 0:00:29]} 0-1


[Site "https://www.chess.com"]

[Event "Titled Tuesday Blitz August 08 Late 2023"]
[White "Beulen, Marcel"]
[Black "Papasimakopoulos, Alexandros"]
[WhiteFideId "1001450"]
[BlackFideId "4244125"]
[WhiteElo "2389"]
[BlackElo "2702"]
[Result "0-1"]
[Round "1"]
[TimeControl "180+1"]
[Date "2023.08.08"]
[WhiteClock "0:01:52"]
[BlackClock "0:02:18"]
[Board "87"]

1. e4 {[%clk 0:02:58]}  e6 {[%clk 0:02:59]} 2. d4 {[%clk 0:02:58]}  d5 {[%clk 0:03:00]} 3. exd5 {[%clk 0:02:58]}  exd5 {[%clk 0:03:00]} 4. Nf3 {[%clk 0:02:58]}  Bg4 {[%clk 0:03:00]} 5. c4 {[%clk 0:02:55]}  Nf6 {[%clk 0:02:59]} 6. Nc3 {[%clk 0:02:54]}  Bb4 {[%clk 0:02:59]} 7. Be2 {[%clk 0:02:38]}  O-O {[%clk 0:02:58]} 8. O-O {[%clk 0:02:35]}  dxc4 {[%clk 0:02:58]} 9. Bxc4 {[%clk 0:02:34]}  Nc6 {[%clk 0:02:58]} 10. Bg5 {[%clk 0:02:23]}  h6 {[%clk 0:02:51]} 11. Bh4 {[%clk 0:02:23]}  Bxf3 {[%clk 0:02:34]} 12. Qxf3 {[%clk 0:02:21]}  Qxd4 {[%clk 0:02:35]} 13. Bxf6 {[%clk 0:02:17]}  Qxc4 {[%clk 0:02:23]} 14. Bh4 {[%clk 0:01:55]}  Bxc3 {[%clk 0:02:20]} 15. bxc3 {[%clk 0:01:52]}  Qxh4 {[%clk 0:02:18]} 0-1


[Site "https://www.chess.com"]

[Event "Titled Tuesday Blitz August 08 Late 2023"]
[White "Jaferian, Koosha"]
[Black "Pinto, Daniel"]
[WhiteFideId "12507440"]
[BlackFideId "3303144"]
[WhiteElo "2702"]
[BlackElo "2387"]
[Result "1-0"]
[Round "1"]
[TimeControl "180+1"]
[Date "2023.08.08"]
[WhiteClock "0:00:47"]
[BlackClock "0:00:00"]
[Board "88"]

1. e4 {[%clk 0:02:57]}  c6 {[%clk 0:02:55]} 2. d4 {[%clk 0:02:57]}  d5 {[%clk 0:02:56]} 3. exd5 {[%clk 0:02:58]}  cxd5 {[%clk 0:02:55]} 4. Bd3 {[%clk 0:02:59]}  Nc6 {[%clk 0:02:56]} 5. c3 {[%clk 0:02:59]}  Qc7 {[%clk 0:02:56]} 6. h3 {[%clk 0:02:56]}  Nf6 {[%clk 0:02:40]} 7. Nf3 {[%clk 0:02:53]}  e6 {[%clk 0:02:21]} 8. O-O {[%clk 0:02:51]}  Bd6 {[%clk 0:02:21]} 9. Bg5 {[%clk 0:02:49]}  Bf4 {[%clk 0:02:18]} 10. Bxf4 {[%clk 0:02:46]}  Qxf4 {[%clk 0:02:18]} 11. Nbd2 {[%clk 0:02:47]}  Ne4 {[%clk 0:02:07]} 12. Re1 {[%clk 0:02:38]}  f5 {[%clk 0:02:06]} 13. Nf1 {[%clk 0:02:35]}  O-O {[%clk 0:02:04]} 14. Qe2 {[%clk 0:02:11]}  Bd7 {[%clk 0:02:01]} 15. Bb5 {[%clk 0:02:09]}  Be8 {[%clk 0:01:56]} 16. Bxc6 {[%clk 0:02:04]}  bxc6 {[%clk 0:01:32]} 17. Ne5 {[%clk 0:02:04]}  Rb8 {[%clk 0:01:23]} 18. Nd3 {[%clk 0:01:48]}  Qh6 {[%clk 0:01:09]} 19. f3 {[%clk 0:01:47]}  Ng5 {[%clk 0:01:04]} 20. Nc5 {[%clk 0:01:48]}  Rf6 {[%clk 0:00:38]} 21. Nd3 {[%clk 0:01:03]}  f4 {[%clk 0:00:22]} 22. Ne5 {[%clk 0:01:00]}  Nxh3+ {[%clk 0:00:11]} 23. gxh3 {[%clk 0:01:00]}  Qxh3 {[%clk 0:00:12]} 24. Qg2 {[%clk 0:01:00]}  Qh4 {[%clk 0:00:09]} 25. Nh2 {[%clk 0:00:57]}  Bh5 {[%clk 0:00:06]} 26. Nhg4 {[%clk 0:00:56]}  Bxg4 {[%clk 0:00:05]} 27. Nxg4 {[%clk 0:00:57]}  Rg6 {[%clk 0:00:05]} 28. Qh2 {[%clk 0:00:51]}  Qg5 {[%clk 0:00:02]} 29. Re5 {[%clk 0:00:50]}  Qd8 {[%clk 0:00:02]} 30. Rae1 {[%clk 0:00:47]}  Qd7 {[%clk 0:00:00]} 31. Qxf4 {[%clk 0:00:47]} 1-0


[Site "https://www.chess.com"]

[Event "Titled Tuesday Blitz August 08 Late 2023"]
[White "Lopez Del Alamo, Antonio"]
[Black "Matinian, Nikita"]
[WhiteFideId "2227339"]
[BlackFideId "24129100"]
[WhiteElo "2386"]
[BlackElo "2695"]
[Result "0-1"]
[Round "1"]
[TimeControl "180+1"]
[Date "2023.08.08"]
[WhiteClock "0:00:00"]
[BlackClock "0:00:31"]
[Board "89"]

1. e4 {[%clk 0:02:56]}  c5 {[%clk 0:02:59]} 2. Nf3 {[%clk 0:02:53]}  e6 {[%clk 0:03:00]} 3. d3 {[%clk 0:02:52]}  Nc6 {[%clk 0:02:57]} 4. g3 {[%clk 0:02:52]}  Nf6 {[%clk 0:02:57]} 5. Bg2 {[%clk 0:02:52]}  d5 {[%clk 0:02:57]} 6. Qe2 {[%clk 0:02:52]}  Qc7 {[%clk 0:02:57]} 7. O-O {[%clk 0:02:52]}  Be7 {[%clk 0:02:56]} 8. e5 {[%clk 0:02:51]}  Nd7 {[%clk 0:02:56]} 9. Bf4 {[%clk 0:02:51]}  h6 {[%clk 0:02:54]} 10. h4 {[%clk 0:02:52]}  Rg8 {[%clk 0:02:54]} 11. h5 {[%clk 0:02:50]}  b6 {[%clk 0:02:54]} 12. c4 {[%clk 0:02:49]}  d4 {[%clk 0:02:51]} 13. Nbd2 {[%clk 0:02:45]}  Bb7 {[%clk 0:02:34]} 14. a3 {[%clk 0:02:38]}  g5 {[%clk 0:02:28]} 15. hxg6 {[%clk 0:02:36]}  Rxg6 {[%clk 0:02:23]} 16. b4 {[%clk 0:02:14]}  cxb4 {[%clk 0:02:17]} 17. axb4 {[%clk 0:02:15]}  Bxb4 {[%clk 0:02:15]} 18. Ne4 {[%clk 0:02:09]}  a5 {[%clk 0:01:28]} 19. Nh4 {[%clk 0:01:40]}  Rg8 {[%clk 0:01:27]} 20. Qh5 {[%clk 0:01:35]}  O-O-O {[%clk 0:00:52]} 21. Nd6+ {[%clk 0:01:21]}  Kb8 {[%clk 0:00:51]} 22. Nxf7 {[%clk 0:01:16]}  Rdf8 {[%clk 0:00:49]} 23. Nxh6 {[%clk 0:01:14]}  Rg7 {[%clk 0:00:44]} 24. Ng6 {[%clk 0:01:10]}  Rxg6 {[%clk 0:00:33]} 25. Qxg6 {[%clk 0:01:09]}  Ncxe5 {[%clk 0:00:34]} 26. Qxe6 {[%clk 0:01:03]}  Bxg2 {[%clk 0:00:33]} 27. Kxg2 {[%clk 0:01:00]}  Rxf4 {[%clk 0:00:33]} 28. gxf4 {[%clk 0:00:58]}  Nxd3 {[%clk 0:00:34]} 29. Qe8+ {[%clk 0:00:51]}  Ka7 {[%clk 0:00:34]} 30. Rfb1 {[%clk 0:00:48]}  Nxf4+ {[%clk 0:00:33]} 31. Kf1 {[%clk 0:00:00]}  Qc6 {[%clk 0:00:31]} 0-1


[Site "https://www.chess.com"]

[Event "Titled Tuesday Blitz August 08 Late 2023"]
[White "Korpics, Zsolt"]
[Black "Annaberdiyev, Meylis"]
[WhiteFideId "705241"]
[BlackFideId "14000563"]
[WhiteElo "2384"]
[BlackElo "2692"]
[Result "0-1"]
[Round "1"]
[TimeControl "180+1"]
[Date "2023.08.08"]
[WhiteClock "0:00:09"]
[BlackClock "0:00:18"]
[Board "91"]

1. e4 {[%clk 0:03:00]}  c5 {[%clk 0:02:59]} 2. Nf3 {[%clk 0:03:00]}  Nc6 {[%clk 0:03:00]} 3. d4 {[%clk 0:03:00]}  cxd4 {[%clk 0:03:00]} 4. Nxd4 {[%clk 0:03:00]}  e5 {[%clk 0:03:01]} 5. Nb5 {[%clk 0:03:00]}  d6 {[%clk 0:03:01]} 6. N1c3 {[%clk 0:02:58]}  a6 {[%clk 0:03:01]} 7. Na3 {[%clk 0:02:58]}  Be7 {[%clk 0:02:58]} 8. Nc4 {[%clk 0:02:38]}  b5 {[%clk 0:02:55]} 9. Ne3 {[%clk 0:02:38]}  Nf6 {[%clk 0:02:56]} 10. Ned5 {[%clk 0:02:37]}  O-O {[%clk 0:02:51]} 11. Bd3 {[%clk 0:02:35]}  Nxd5 {[%clk 0:02:32]} 12. Nxd5 {[%clk 0:02:34]}  Bg5 {[%clk 0:02:32]} 13. Be3 {[%clk 0:02:12]}  Bxe3 {[%clk 0:02:11]} 14. Nxe3 {[%clk 0:02:13]}  Be6 {[%clk 0:02:11]} 15. O-O {[%clk 0:02:12]}  Ne7 {[%clk 0:02:10]} 16. Qd2 {[%clk 0:01:45]}  Qb6 {[%clk 0:01:58]} 17. Rad1 {[%clk 0:01:39]}  Rad8 {[%clk 0:01:56]} 18. Nf5 {[%clk 0:01:20]}  Bxf5 {[%clk 0:01:49]} 19. exf5 {[%clk 0:01:21]}  f6 {[%clk 0:01:50]} 20. Qe3 {[%clk 0:00:53]}  Qc7 {[%clk 0:01:05]} 21. a4 {[%clk 0:00:41]}  bxa4 {[%clk 0:01:04]} 22. Bxa6 {[%clk 0:00:40]}  Nxf5 {[%clk 0:00:58]} 23. Qe4 {[%clk 0:00:31]}  Nd4 {[%clk 0:00:45]} 24. c3 {[%clk 0:00:30]}  d5 {[%clk 0:00:42]} 25. Qh4 {[%clk 0:00:21]}  Nb3 {[%clk 0:00:36]} 26. Qxa4 {[%clk 0:00:20]}  Nc5 {[%clk 0:00:36]} 27. Qa2 {[%clk 0:00:18]}  Kh8 {[%clk 0:00:32]} 28. Rxd5 {[%clk 0:00:17]}  Rxd5 {[%clk 0:00:31]} 29. Qxd5 {[%clk 0:00:17]}  Nxa6 {[%clk 0:00:31]} 30. Rd1 {[%clk 0:00:16]}  h6 {[%clk 0:00:31]} 31. c4 {[%clk 0:00:14]}  Rb8 {[%clk 0:00:28]} 32. Rd2 {[%clk 0:00:13]}  Nb4 {[%clk 0:00:27]} 33. Qe6 {[%clk 0:00:12]}  Qb6 {[%clk 0:00:18]} 34. h4 {[%clk 0:00:09]}  Qxe6 {[%clk 0:00:18]} 0-1


[Site "https://www.chess.com"]

[Event "Titled Tuesday Blitz August 08 Late 2023"]
[White "kiwibobo"]
[Black "Rastbod, Ali"]
[BlackFideId "12567477"]
[WhiteElo "2382"]
[BlackElo "2688"]
[Result "0-1"]
[Round "1"]
[TimeControl "180+1"]
[Date "2023.08.08"]
[WhiteClock "0:02:15"]
[BlackClock "0:02:12"]
[Board "93"]

1. e4 {[%clk 0:02:59]}  c5 {[%clk 0:02:58]} 2. Nf3 {[%clk 0:03:00]}  Nc6 {[%clk 0:02:58]} 3. d4 {[%clk 0:03:00]}  cxd4 {[%clk 0:02:58]} 4. Nxd4 {[%clk 0:03:01]}  Nf6 {[%clk 0:02:59]} 5. Nc3 {[%clk 0:03:01]}  e5 {[%clk 0:02:59]} 6. Ndb5 {[%clk 0:03:01]}  d6 {[%clk 0:03:00]} 7. Nd5 {[%clk 0:03:01]}  Nxd5 {[%clk 0:03:00]} 8. exd5 {[%clk 0:03:02]}  Nb8 {[%clk 0:03:00]} 9. a4 {[%clk 0:03:02]}  Be7 {[%clk 0:02:59]} 10. Be2 {[%clk 0:03:02]}  O-O {[%clk 0:02:59]} 11. O-O {[%clk 0:03:02]}  f5 {[%clk 0:02:59]} 12. f4 {[%clk 0:03:02]}  Bf6 {[%clk 0:02:55]} 13. c3 {[%clk 0:02:55]}  Na6 {[%clk 0:02:47]} 14. Be3 {[%clk 0:02:54]}  b6 {[%clk 0:02:45]} 15. fxe5 {[%clk 0:02:46]}  dxe5 {[%clk 0:02:38]} 16. d6 {[%clk 0:02:45]}  Be6 {[%clk 0:02:30]} 17. Na3 {[%clk 0:02:38]}  Nc5 {[%clk 0:02:29]} 18. Bc4 {[%clk 0:02:29]}  Qc8 {[%clk 0:02:17]} 19. Bxc5 {[%clk 0:02:25]}  Qxc5+ {[%clk 0:02:16]} 20. Kh1 {[%clk 0:02:21]}  Bxc4 {[%clk 0:02:16]} 21. b4 {[%clk 0:02:21]}  Qc6 {[%clk 0:02:16]} 22. b5 {[%clk 0:02:21]}  Qc5 {[%clk 0:02:17]} 23. Nc2 {[%clk 0:02:20]}  Rad8 {[%clk 0:02:12]} 24. Qf3 {[%clk 0:02:15]} 0-1


[Site "https://www.chess.com"]

[Event "Titled Tuesday Blitz August 08 Late 2023"]
[White "Ponikarovsky, Alexey"]
[Black "Eggleston, Thomas A"]
[WhiteFideId "4122887"]
[BlackFideId "412139"]
[WhiteElo "2673"]
[BlackElo "2380"]
[Result "1-0"]
[Round "1"]
[TimeControl "180+1"]
[Date "2023.08.08"]
[WhiteClock "0:02:02"]
[BlackClock "0:00:47"]
[Board "94"]

1. e4 {[%clk 0:02:59]}  e6 {[%clk 0:03:00]} 2. d4 {[%clk 0:02:59]}  d5 {[%clk 0:03:00]} 3. exd5 {[%clk 0:03:00]}  exd5 {[%clk 0:03:00]} 4. c4 {[%clk 0:03:00]}  Nf6 {[%clk 0:03:00]} 5. Nf3 {[%clk 0:03:00]}  Bb4+ {[%clk 0:02:58]} 6. Nc3 {[%clk 0:03:00]}  O-O {[%clk 0:02:56]} 7. Be2 {[%clk 0:03:00]}  Re8 {[%clk 0:02:48]} 8. O-O {[%clk 0:02:59]}  dxc4 {[%clk 0:02:36]} 9. Bxc4 {[%clk 0:03:00]}  Nc6 {[%clk 0:02:33]} 10. h3 {[%clk 0:02:56]}  Bxc3 {[%clk 0:02:13]} 11. bxc3 {[%clk 0:02:55]}  Be6 {[%clk 0:02:13]} 12. Bb5 {[%clk 0:02:52]}  a6 {[%clk 0:02:10]} 13. Bxc6 {[%clk 0:02:50]}  bxc6 {[%clk 0:02:10]} 14. Bg5 {[%clk 0:02:51]}  h6 {[%clk 0:02:10]} 15. Bh4 {[%clk 0:02:50]}  g5 {[%clk 0:01:57]} 16. Bg3 {[%clk 0:02:50]}  Ne4 {[%clk 0:01:47]} 17. Qc1 {[%clk 0:02:36]}  Nxg3 {[%clk 0:01:18]} 18. fxg3 {[%clk 0:02:35]}  Bc4 {[%clk 0:01:18]} 19. Rf2 {[%clk 0:02:33]}  f6 {[%clk 0:01:14]} 20. Qc2 {[%clk 0:02:27]}  Kg7 {[%clk 0:01:12]} 21. Nd2 {[%clk 0:02:28]}  Bf7 {[%clk 0:01:07]} 22. Raf1 {[%clk 0:02:28]}  Bg6 {[%clk 0:01:07]} 23. Qa4 {[%clk 0:02:18]}  Re6 {[%clk 0:01:03]} 24. Nb3 {[%clk 0:02:15]}  Bd3 {[%clk 0:00:57]} 25. Nc5 {[%clk 0:02:13]}  Re3 {[%clk 0:00:55]} 26. Nxd3 {[%clk 0:02:10]}  Rxd3 {[%clk 0:00:55]} 27. Qxc6 {[%clk 0:02:09]}  Re3 {[%clk 0:00:47]} 28. Rxf6 {[%clk 0:02:02]}  Re7 {[%clk 0:00:47]} 1-0


[Site "https://www.chess.com"]

[Event "Titled Tuesday Blitz August 08 Late 2023"]
[White "Dzida, Kamil"]
[Black "Seemann, Jakub"]
[WhiteFideId "21828652"]
[BlackFideId "21874697"]
[WhiteElo "2379"]
[BlackElo "2671"]
[Result "1/2-1/2"]
[Round "1"]
[TimeControl "180+1"]
[Date "2023.08.08"]
[WhiteClock "0:00:20"]
[BlackClock "0:00:07"]
[Board "95"]

1. e4 {[%clk 0:02:56]}  c6 {[%clk 0:02:53]} 2. d4 {[%clk 0:02:53]}  d5 {[%clk 0:02:53]} 3. Nc3 {[%clk 0:02:53]}  dxe4 {[%clk 0:02:52]} 4. Nxe4 {[%clk 0:02:54]}  Nf6 {[%clk 0:02:52]} 5. Nxf6+ {[%clk 0:02:54]}  exf6 {[%clk 0:02:53]} 6. c3 {[%clk 0:02:54]}  Bd6 {[%clk 0:02:53]} 7. Bd3 {[%clk 0:02:55]}  O-O {[%clk 0:02:52]} 8. Qc2 {[%clk 0:02:55]}  Re8+ {[%clk 0:02:51]} 9. Ne2 {[%clk 0:02:56]}  h5 {[%clk 0:02:51]} 10. O-O {[%clk 0:02:55]}  h4 {[%clk 0:02:39]} 11. Nf4 {[%clk 0:02:55]}  Qc7 {[%clk 0:02:31]} 12. g3 {[%clk 0:02:54]}  Nd7 {[%clk 0:02:26]} 13. Qd1 {[%clk 0:02:53]}  Nf8 {[%clk 0:02:24]} 14. Qh5 {[%clk 0:02:48]}  hxg3 {[%clk 0:02:17]} 15. hxg3 {[%clk 0:02:36]}  Qd7 {[%clk 0:02:16]} 16. Bd2 {[%clk 0:02:28]}  Qg4 {[%clk 0:02:13]} 17. Qxg4 {[%clk 0:02:15]}  Bxg4 {[%clk 0:02:14]} 18. Rae1 {[%clk 0:02:14]}  Ne6 {[%clk 0:01:54]} 19. Nxe6 {[%clk 0:02:13]}  Bxe6 {[%clk 0:01:49]} 20. b3 {[%clk 0:01:48]}  a5 {[%clk 0:01:37]} 21. c4 {[%clk 0:01:43]}  a4 {[%clk 0:01:35]} 22. Bc3 {[%clk 0:01:39]}  axb3 {[%clk 0:01:34]} 23. axb3 {[%clk 0:01:39]}  Ra3 {[%clk 0:01:22]} 24. d5 {[%clk 0:01:33]}  cxd5 {[%clk 0:01:18]} 25. cxd5 {[%clk 0:01:32]}  Bd7 {[%clk 0:01:19]} 26. Rxe8+ {[%clk 0:01:28]}  Bxe8 {[%clk 0:01:11]} 27. Bc2 {[%clk 0:00:52]}  Bd7 {[%clk 0:00:49]} 28. Ra1 {[%clk 0:00:46]}  Rxa1+ {[%clk 0:00:44]} 29. Bxa1 {[%clk 0:00:47]}  Kf8 {[%clk 0:00:38]} 30. Bd4 {[%clk 0:00:44]}  Ke7 {[%clk 0:00:38]} 31. f4 {[%clk 0:00:38]}  Kd8 {[%clk 0:00:36]} 32. Kf2 {[%clk 0:00:37]}  Kc7 {[%clk 0:00:34]} 33. Ke3 {[%clk 0:00:37]}  Bb4 {[%clk 0:00:33]} 34. Bd1 {[%clk 0:00:23]}  Kd6 {[%clk 0:00:32]} 35. Bf3 {[%clk 0:00:23]}  Bf5 {[%clk 0:00:25]} 36. g4 {[%clk 0:00:20]}  Bc2 {[%clk 0:00:24]} 37. g5 {[%clk 0:00:21]}  Bxb3 {[%clk 0:00:21]} 38. gxf6 {[%clk 0:00:21]}  gxf6 {[%clk 0:00:20]} 39. Bxf6 {[%clk 0:00:21]}  Bxd5 {[%clk 0:00:19]} 40. Be7+ {[%clk 0:00:22]}  Kxe7 {[%clk 0:00:10]} 41. Bxd5 {[%clk 0:00:22]}  Bc5+ {[%clk 0:00:07]} 42. Kd3 {[%clk 0:00:21]}  b6 {[%clk 0:00:08]} 43. Kc4 {[%clk 0:00:20]}  f6 {[%clk 0:00:09]} 44. f5 {[%clk 0:00:20]}  Kd6 {[%clk 0:00:07]} 45. Be6 {[%clk 0:00:20]} 1/2-1/2


[Site "https://www.chess.com"]